[Event "13th All African Mixed Team Rapid-ch 202"]
[Site "Accra"]
[Date "2024.03.09"]
[Round "3.2"]
[White "Junior, Ednasia"]
[Black "February, Jesse Nikki"]
[Result "1-0"]
[ECO "A29"]
[WhiteElo "1915"]
[BlackElo "1920"]
[Annotator "ChessBase"]
[PlyCount "127"]
[EventDate "2024.03.07"]
[EventType "rapid"]
[EventCountry "GHA"]
[SourceTitle "playchess.com"]
[Source "ChessBase"]
[SourceQuality "1"]
[TimeControl "900+10"]

1. c4 {[%emt 0:00:02]} e5 {[%emt 0:00:27]} 2. Nc3 {[%emt 0:00:02]} Nf6 {[%emt 0:00:02]} 3. g3 {[%emt 0:00:03]} Bc5 {[%emt 0:00:03]} 4. Bg2 {[%emt 0:00:03]} d6 {[%emt 0:00:02]} 5. d3 {[%emt 0:00:04]} Nc6 {[%emt 0:00:36]} 6. Nf3 {[%emt 0:00:02]} Bg4 {[%emt 0:00:02]} 7. h3 {[%emt 0:00:36]} Bxf3 {[%emt 0:00:22]} 8. Bxf3 {[%emt 0:00:02]} Qd7 {[%emt 0:00:01]} 9. Bg5 {[%emt 0:01:32]} Nd4 {[%emt 0:00:56]} 10. e3 {[%emt 0:02:21]} Nxf3+ {[%emt 0:02:33]} 11. Qxf3 {[%emt 0:00:02]} O-O-O {[%emt 0:00:15]} 12. O-O-O {[%emt 0:02:29]} Rde8 {[%emt 0:01:02]} 13. Bxf6 {[%emt 0:00:22]} gxf6 {[%emt 0:00:01]} 14. Qxf6 {[%emt 0:00:01]} Kb8 {[%emt 0:00:40]} 15. Kb1 {[%emt 0:01:15]} Rhg8 {[%emt 0:00:41]} 16. Qf3 {[%emt 0:01:38]} f5 {[%emt 0:00:32]} 17. Nd5 {[%emt 0:01:22]} Rgf8 {[%emt 0:02:49]} 18. h4 {[%emt 0:02:45]} c6 {[%emt 0:02:39]} 19. Nc3 {[%emt 0:01:08]} Qg7 {[%emt 0:01:09]} 20. a3 {[%emt 0:01:30]} Bb6 {[%emt 0:00:16]} 21. Rd2 {[%emt 0:00:28]} Ba5 {[%emt 0:00:28]} 22. Rc2 {[%emt 0:00:07]} Qg6 {[%emt 0:01:41]} 23. Rd1 {[%emt 0:00:34]} h5 {[%emt 0:00:30]} 24. Ne2 {[%emt 0:00:21]} Qg4 {[%emt 0:00:32]} 25. Ng1 {[%emt 0:00:14]} f4 {[%emt 0:00:18]} 26. gxf4 {[%emt 0:00:10]} exf4 {[%emt 0:00:03]} 27. e4 {[%emt 0:00:03]} Qxh4 {[%emt 0:00:09]} 28. Ne2 {[%emt 0:00:08]} Qg4 {[%emt 0:00:24]} 29. Qxg4 {[%emt 0:00:12]} hxg4 {[%emt 0:00:02]} 30. Rg1 {[%emt 0:00:01]} f3 {[%emt 0:00:06]} 31. Ng3 {[%emt 0:00:11]} Re6 {[%emt 0:00:31]} 32. Nf5 {[%emt 0:00:19]} Rg8 {[%emt 0:00:01]} 33. Rg3 {[%emt 0:00:07]} Bc7 {[%emt 0:00:12]} 34. Rg1 {[%emt 0:00:13]} Kc8 {[%emt 0:00:21]} 35. Rd2 {[%emt 0:00:11]} Kd7 {[%emt 0:00:02]} 36. Kc2 {[%emt 0:00:01]} Reg6 {[%emt 0:00:06]} 37. d4 {[%emt 0:00:15]} Ke6 {[%emt 0:00:14]} 38. d5+ {[%emt 0:00:17]} cxd5 {[%emt 0:00:13]} 39. cxd5+ {[%emt 0:00:02]} Kd7 {[%emt 0:00:04]} 40. Kd3 {[%emt 0:00:03]} Bb6 {[%emt 0:00:07]} 41. Rc2 {[%emt 0:00:23]} Rg5 {[%emt 0:00:22]} 42. Rg3 {[%emt 0:00:14]} Rh8 {[%emt 0:00:17]} 43. Ne3 {[%emt 0:00:08]} Bxe3 {[%emt 0:00:17]} 44. Kxe3 {[%emt 0:00:02]} Rhg8 {[%emt 0:00:07]} 45. Rc1 {[%emt 0:00:04]} R5g7 {[%emt 0:00:06]} 46. Rcg1 {[%emt 0:00:01]} Rc8 {[%emt 0:00:05]} 47. Rxg4 {[%emt 0:00:31]} Rxg4 {[%emt 0:00:05]} 48. Rxg4 {[%emt 0:00:01]} Rc2 {[%emt 0:00:02]} 49. Rg7+ {[%emt 0:00:08]} Kc8 {[%emt 0:00:02]} 50. Kxf3 {[%emt 0:00:25]} Rxb2 {[%emt 0:00:02]} 51. Kg3 {[%emt 0:00:08]} Rb3+ {[%emt 0:00:03]} 52. Kg4 {[%emt 0:00:04]} Rxa3 {[%emt 0:00:03]} 53. f4 {[%emt 0:00:01]} Ra1 {[%emt 0:00:01]} 54. Kf5 {[%emt 0:00:02]} Re1 {[%emt 0:00:26]} 55. e5 {[%emt 0:00:07]} dxe5 {[%emt 0:00:09]} 56. fxe5 {[%emt 0:00:02]} a5 {[%emt 0:00:17]} 57. Ke6 {[%emt 0:00:01]} Rh1 {[%emt 0:00:01]} 58. Kd6 {[%emt 0:00:03]} Rh6+ {[%emt 0:00:10]} 59. e6 {[%emt 0:00:02]} b5 {[%emt 0:00:00]} 60. Kc6 {[%emt 0:00:09]} Kd8 {[%emt 0:00:16]} 61. Kxb5 {[%emt 0:00:03]} Rh5 {[%emt 0:00:01]} 62. Kc6 {[%emt 0:00:04]} Rh1 {[%emt 0:00:09]} 63. Ra7 {[%emt 0:00:06]} Ra1 {[%emt 0:00:20]} 64. Kd6 {[%emt 0:00:02]} 1-0

[Event "13th All African Mixed Team Rapid-ch 202"]
[Site "Accra"]
[Date "2024.03.09"]
[Round "3.3"]
[White "Zhemba, Jemusse"]
[Black "Amin, Bassem"]
[Result "0-1"]
[ECO "C28"]
[WhiteElo "2226"]
[BlackElo "2670"]
[Annotator "TA"]
[PlyCount "106"]
[EventDate "2024.03.07"]
[EventType "rapid"]
[EventCountry "GHA"]
[SourceTitle "playchess.com"]
[Source "ChessBase"]
[SourceQuality "1"]
[TimeControl "900+10"]

{[%evp 19,106,-70,-34,-46,-10,-16,0,0,0,0,16,-22,45,57,50,40,42,0,0,0,0,0,0,-66,-74,-204,-204,-187,-201,-206,-123,-127,-108,-121,-107,-106,-98,-77,-54,-69,-22,-38,-46,-111,-49,-112,-85,-167,-111,-301,-289,-323,-294,-365,-368,-506,-526,-612,-504,-527,-551,-514,-483,-517,-405,-381,-391,-636,-627,-635,-641,-825,-800,-756,-723,-1162,-1092,-5769,-5335,-29960,-29962,-5181,-2177,-29983,-29984,-29989,-29978,-29979,-29980]} 1. e4 {[%emt 0:00:03]} e5 {[%emt 0:00:02]} 2. Bc4 {[%emt 0:00:09]} Nc6 {[%emt 0:00:11]} 3. Nc3 {[%emt 0:00:05]} Nf6 {[%emt 0:00:16]} 4. d3 {[%emt 0:00:03]} Bb4 {[%emt 0:00:48]} 5. Nge2 {[%emt 0:00:09]} d5 {[%emt 0:01:04]} 6. exd5 {[%emt 0:00:04]} Nxd5 {[%emt 0:00:02]} 7. O-O {[%emt 0:00:05]} Be6 {[%emt 0:00:35]} 8. Bxd5 {[%emt 0:00:03]} Bxd5 {[%emt 0:00:01]} 9. f4 {[%emt 0:00:02] C28: Vienna Game: 2...Nf6 3 Bc4 Nc6.} f6 {[%emt 0:00:15]} 10. f5 {[%emt 0:00:11]} Bf7 {[%emt 0:03:21]} 11. Ne4 {[%emt 0:01:15]} Nd4 $146 {[%emt 0:01:24]} ({Predecessor:} 11... Qd7 12. Be3 O-O-O 13. a3 Be7 14. N2g3 Rhg8 15. b4 Nd4 16. Rf2 Qa4 17. Qb1 Kb8 {0-1 Blokhin,S (1956)-Sliwicka,A (2296) EU-chT (Women) 24th 2023 (5.4)}) 12. N2g3 {[%emt 0:01:10]} Be7 {[%emt 0:00:58]} 13. c3 {[%emt 0:00:53]} Nc6 {[%emt 0:00:22]} 14. Qg4 {[%emt 0:00:03]} Rg8 {[%emt 0:02:59]} 15. Nh5 $1 {[%emt 0:00:51]} Qxd3 {[%emt 0:01:53]} (15... Kd7 $1 $11) 16. Rd1 $1 $14 {[%emt 0:02:04]} Bxh5 $1 {[%emt 0:00:53]} 17. Qxh5+ {[%emt 0:00:16]} g6 {[%emt 0:00:00]} 18. Qg4 {[%emt 0:00:01]} h5 $1 {[%emt 0:00:28]} 19. Qxg6+ {[%emt 0:00:25]} Rxg6 {[%emt 0:00:01]} 20. Rxd3 {[%emt 0:00:01]} Rg4 {[%emt 0:00:02]} 21. Ng3 {[%emt 0:01:29]} (21. Nf2 $11 Bc5 22. Be3 Bxe3 23. Rxe3) 21... h4 $15 {[%emt 0:00:09]} 22. Ne2 {[%emt 0:00:03]} (22. Nf1 $17) 22... Bc5+ $1 $19 {[%emt 0:00:13]} 23. Kf1 {[%emt 0:00:08]} Ne7 {[%emt 0:00:09]} 24. h3 {[%emt 0:02:30]} Rg8 {[%emt 0:00:03]} (24... Re4 $19 25. Bd2 Nxf5) 25. b4 $17 {[%emt 0:00:26]} Bb6 {[%emt 0:00:03]} 26. c4 {[%emt 0:00:01]} c6 {[%emt 0:00:39]} (26... Nxf5 $2 27. c5 $16) 27. c5 {[%emt 0:01:33]} Rd8 {[%emt 0:00:06]} 28. Ra3 {[%emt 0:00:43]} Bc7 {[%emt 0:00:37]} (28... Rd1+ {looks sharper.} 29. Kf2 Bd8 30. Rxa7 Nxf5 31. Bb2 Rd3) 29. Rxa7 {[%emt 0:00:01]} Rb8 {[%emt 0:00:08]} (29... Nxf5 30. Rxb7 Rg7 (30... Rd1+ 31. Kf2 $11) 31. Nc3 $17) (29... Rd1+ $15 {feels stronger.} 30. Kf2 e4 (30... Nxf5 31. Rxb7 Kd7 32. Nc3 $15)) 30. Nc3 {[%emt 0:00:19]} Nxf5 {[%emt 0:00:06]} 31. Ne4 {[%emt 0:00:43] [#]} ({White should play} 31. Rb1 $15) 31... Ke7 {[%emt 0:00:07]} (31... Kf7 $1 $17 {And now ...Rgd8 would win.} 32. Rb1 Nd4) 32. Bd2 {[%emt 0:00:35]} (32. b5 $1 $15 cxb5 33. c6) 32... Nd4 {[%emt 0:00:09]} 33. Nc3 {[%emt 0:02:03] [#]} (33. a4 $17) 33... Ke6 {[%emt 0:00:13]} ({Black should try} 33... Rg3 $1 $19 {[%cal Rg3c3] White must now prevent ...Rxc3!} 34. Rc1 Rbg8 (34... f5 35. Be1 $15) 35. Rxb7 Kd8) 34. Be1 $2 {[%emt 0:00:19]} (34. a4 $17) 34... Nc2 $19 {[%emt 0:00:03]} 35. Rc1 {[%emt 0:00:24]} Ne3+ {[%emt 0:00:07]} (35... Nxb4 36. Bxh4 Nd3 37. Rb1 $17) 36. Ke2 {[%emt 0:00:02]} Nxg2 {[%emt 0:00:05]} (36... Rxg2+ 37. Kxe3 f5 38. b5 $16 (38. Bxh4 Rh8 $17)) 37. b5 {[%emt 0:00:07]} Nf4+ {[%emt 0:00:25]} 38. Ke3 {[%emt 0:00:31]} Rbd8 {[%emt 0:00:29]} 39. Rd1 {[%emt 0:00:45]} Rxd1 {[%emt 0:00:07]} (39... Nxh3 $2 40. Rxb7 Rxd1 41. Nxd1 $19) 40. Nxd1 {[%emt 0:00:01]} Rg1 {[%emt 0:00:07]} 41. Kd2 {[%emt 0:00:15]} cxb5 {[%emt 0:00:09]} ({Less strong is} 41... Nxh3 42. b6 Bd8 (42... Rg2+ 43. Kc1 $11) 43. Rxb7 $17) 42. Bxh4 {[%emt 0:00:08]} Rg2+ {[%emt 0:00:21]} ({Not} 42... Nxh3 43. Rxb7 Rg2+ 44. Kc1 $17) (42... Ng2 43. Bf2 Rh1 44. Rxb7 (44. c6 Kd6 $15) 44... Ba5+ 45. Kc2 $15) 43. Kc3 $2 {[%emt 0:00:45]} (43. Ke1 Rc2 (43... Nxh3 $2 44. c6 $19) 44. Bg3) 43... Nd5+ {[%emt 0:00:11]} (43... Nxh3 $2 44. Kb3 $19) 44. Kb3 {[%emt 0:00:08]} e4 {[%emt 0:00:23]} 45. Rxb7 {[%emt 0:00:24]} Rd2 {[%emt 0:00:02]} 46. Nc3 {[%emt 0:00:15]} Rd3 {[%emt 0:00:03]} 47. Be1 {[%emt 0:00:05]} Be5 {[%emt 0:00:25]} 48. Rxb5 {[%emt 0:00:14]} Bxc3 {[%emt 0:00:06]} 49. Bxc3 {[%emt 0:00:16]} Rxc3+ {[%emt 0:00:02]} 50. Kb2 {[%emt 0:00:01]} Rxh3 {[%emt 0:00:12]} (50... e3 $142 51. Rb4 Kf5 (51... Nxb4 $2 52. Kxc3 Kf5 53. a3 $19)) 51. a4 {[%emt 0:00:04]} e3 {[%emt 0:00:06]} 52. Kc2 {[%emt 0:00:06]} e2 {[%emt 0:00:04]} 53. Kd2 {[%emt 0:00:04]} Rh1 {[%emt 0:00:02]} 0-1

[Event "13th All African Mixed Team Rapid-ch 202"]
[Site "Accra"]
[Date "2024.03.09"]
[Round "3.4"]
[White "Wafa, Shahenda"]
[Black "Shaba, Linda Dalitso"]
[Result "1-0"]
[ECO "C62"]
[WhiteElo "2083"]
[BlackElo "1836"]
[Annotator "RC"]
[PlyCount "107"]
[EventDate "2024.03.07"]
[EventType "rapid"]
[EventCountry "GHA"]
[SourceTitle "playchess.com"]
[Source "ChessBase"]
[SourceQuality "1"]
[TimeControl "900+10"]

1. e4 {[%emt 0:00:02]} e5 {[%emt 0:00:06]} 2. Nf3 {[%emt 0:00:02]} Nc6 {[%emt 0:00:02]} 3. Bb5 {[%emt 0:00:03]} d6 {[%emt 0:00:16]} 4. c3 {[%emt 0:00:11]} Nf6 {[%emt 0:00:33]} 5. O-O {[%emt 0:00:22]} Be7 {[%emt 0:00:31]} 6. d4 {[%emt 0:01:28]} exd4 {[%emt 0:00:28]} 7. cxd4 {[%emt 0:00:07]} O-O {[%emt 0:01:14]} 8. Nc3 {[%emt 0:00:25]} Bg4 {[%emt 0:00:12]} 9. Be3 {[%emt 0:00:25]} Bh5 {[%emt 0:00:57]} 10. h3 {[%emt 0:01:15]} h6 {[%emt 0:00:55]} 11. a3 {[%emt 0:00:51]} Nh7 {[%emt 0:01:48]} 12. Be2 {[%emt 0:02:55]} Re8 {[%emt 0:01:46]} 13. Qb3 {[%emt 0:01:48]} Qc8 {[%emt 0:03:25]} 14. Rac1 {[%emt 0:02:13]} Bf6 {[%emt 0:00:39]} 15. d5 {[%emt 0:01:43]} Ne5 {[%emt 0:02:20]} 16. Nxe5 {[%emt 0:00:13]} Bxe2 {[%emt 0:00:06]} 17. Nxe2 {[%emt 0:00:05]} Bxe5 {[%emt 0:00:06]} 18. f4 {[%emt 0:00:44]} Bf6 {[%emt 0:00:07]} 19. Qc2 {[%emt 0:00:42]} Bd8 {[%emt 0:00:11]} 20. Bd4 {[%emt 0:00:29]} Bf6 {[%emt 0:01:07]} 21. Rfe1 {[%emt 0:00:22]} Bxd4+ {[%emt 0:00:14]} 22. Nxd4 {[%emt 0:00:02]} Nf6 {[%emt 0:00:05]} 23. Qxc7 {[%emt 0:00:47]} Qxc7 {[%emt 0:00:08]} 24. Rxc7 {[%emt 0:00:02]} Nxd5 {[%emt 0:00:06]} 25. Rxb7 {[%emt 0:00:12]} Nxf4 {[%emt 0:00:10]} 26. Nf5 {[%emt 0:00:17]} Reb8 {[%emt 0:00:32]} 27. Nxd6 {[%emt 0:00:53]} Rxb7 {[%emt 0:00:03]} 28. Nxb7 {[%emt 0:00:01]} Rb8 {[%emt 0:00:01]} 29. Rf1 {[%emt 0:00:47]} Nxh3+ {[%emt 0:00:02]} 30. gxh3 {[%emt 0:00:01]} Rxb7 {[%emt 0:00:02]} 31. Rf2 {[%emt 0:00:04]} Rb3 {[%emt 0:00:02]} 32. Kg2 {[%emt 0:00:01]} Re3 {[%emt 0:00:00]} 33. Rc2 {[%emt 0:00:20]} Rxe4 {[%emt 0:00:00]} 34. Kf3 {[%emt 0:00:16]} Re7 {[%emt 0:00:05]} 35. b4 {[%emt 0:00:11]} g6 {[%emt 0:00:38]} 36. a4 {[%emt 0:00:11]} Kg7 {[%emt 0:00:08]} 37. b5 {[%emt 0:00:14]} Kf6 {[%emt 0:00:10]} 38. Rc5 {[%emt 0:00:23]} Ke6 {[%emt 0:00:12]} 39. Kf4 {[%emt 0:00:07]} Kd6 {[%emt 0:00:09]} 40. Rc6+ {[%emt 0:00:01]} Kd5 {[%emt 0:00:07]} 41. Rf6 {[%emt 0:00:12]} Kc5 {[%emt 0:00:36]} 42. h4 {[%emt 0:00:08]} Kb4 {[%emt 0:00:35]} 43. Ra6 {[%emt 0:00:03]} Kc5 {[%emt 0:00:45]} 44. h5 {[%emt 0:00:09]} gxh5 {[%emt 0:00:27]} 45. Rxh6 {[%emt 0:00:06]} Kb4 {[%emt 0:00:06]} 46. Ra6 {[%emt 0:00:04]} Rd7 {[%emt 0:00:14]} 47. Kg5 {[%emt 0:00:06]} Rd5+ {[%emt 0:00:17]} 48. Kh4 {[%emt 0:00:01]} Rc5 {[%emt 0:00:04]} 49. Rxa7 {[%emt 0:00:03]} f6 {[%emt 0:00:03]} 50. b6 {[%emt 0:00:13]} Rc8 {[%emt 0:00:08]} 51. Kxh5 {[%emt 0:00:21]} Rb8 {[%emt 0:00:05]} 52. a5 {[%emt 0:01:09]} Rg8 {[%emt 0:00:10]} 53. b7 {[%emt 0:00:00]} Rb8 {[%emt 0:00:02]} 54. a6 {[%emt 0:00:00]} 1-0

[Event "13th All African Mixed Team Rapid-ch 202"]
[Site "Accra"]
[Date "2024.03.09"]
[Round "3.5"]
[White "Wanyama, Harold"]
[Black "Arab, Adlane"]
[Result "0-1"]
[ECO "E11"]
[WhiteElo "2226"]
[BlackElo "2477"]
[Annotator "TA"]
[PlyCount "88"]
[EventDate "2024.03.07"]
[EventType "rapid"]
[EventCountry "GHA"]
[SourceTitle "playchess.com"]
[Source "ChessBase"]
[SourceQuality "1"]
[TimeControl "900+10"]

{[%evp 13,88,-7,14,-11,-14,-16,-10,-15,-2,-23,-16,-35,-21,-58,-47,-50,-22,-71,-14,-50,-60,-56,-61,-73,-72,-81,-74,-96,-46,-112,-77,-68,-41,-87,-85,-129,-77,-114,-118,-108,-99,-116,-117,-115,-118,-89,-118,-213,-189,-193,-186,-298,-283,-288,-296,-329,-329,-497,-481,-506,-503,-6275,-6291,-6207,-6207,-5869,-5813,-5306,-2445,-2206,-2114,-1862,-525,-1595,-519,-29996,-1512]} 1. d4 {[%emt 0:00:31]} Nf6 {[%emt 0:00:02]} 2. c4 {[%emt 0:00:02]} e6 {[%emt 0:00:01]} 3. g3 {[%emt 0:00:03]} d5 {[%emt 0:00:04]} 4. Bg2 {[%emt 0:00:02]} Bb4+ {[%emt 0:00:03]} 5. Bd2 {[%emt 0:00:05]} Be7 {[%emt 0:00:04]} 6. Nf3 {[%emt 0:00:03]} Nbd7 {[%emt 0:00:02]} 7. O-O {[%emt 0:00:10]} O-O {[%emt 0:00:06]} 8. cxd5 {[%emt 0:00:08]} exd5 {[%emt 0:00:01]} 9. Nc3 {[%emt 0:00:01]} c6 {[%emt 0:00:15]} 10. Qc2 {[%emt 0:00:10] Die Stellung ist ausgeglichen.} Re8 {[%emt 0:00:14]} 11. a3 {[%emt 0:00:10]} Bd6 {[%emt 0:00:08]} 12. Ne1 {[%emt 0:00:29]} Nb6 {[%emt 0:00:10]} 13. b3 {[%emt 0:00:21]} a5 {[%emt 0:00:26]} 14. a4 $1 {[%emt 0:00:46]} Qe7 {[%emt 0:00:13]} 15. e3 {[%emt 0:01:13]} (15. f3 $11) 15... Bg4 {[%emt 0:00:12]} (15... Ne4 $17) 16. h3 {[%emt 0:00:41]} Bh5 {[%emt 0:00:02]} 17. Bc1 {[%emt 0:00:14]} Bg6 {[%emt 0:00:04]} 18. Qd1 {[%emt 0:00:03]} Nbd7 {[%emt 0:00:29]} 19. Bb2 {[%emt 0:00:06]} h6 {[%emt 0:00:22]} 20. Nd3 {[%emt 0:00:26]} Ne4 {[%emt 0:00:27]} (20... Nb8 $17 21. Qd2 Nbd7) 21. Ne2 {[%emt 0:00:15]} (21. Nxe4 $15 Bxe4 (21... dxe4 22. Nf4 $15) 22. Re1) 21... Bh7 {[%emt 0:01:55] Schwarz steht deutlich aktiver.} (21... Bh5 {wäre vielleicht verwirrender.} 22. Qc2 Bxe2 23. Qxe2 Bxg3 24. fxg3 Nxg3 25. Qf2 Nxf1 26. Rxf1 Qxe3 27. Ne5 Qxf2+ 28. Kxf2 Nf8) 22. Nef4 {[%emt 0:00:37]} Ng5 {[%emt 0:00:06]} 23. h4 {[%emt 0:01:26]} (23. Re1 $15 {ist eher angebracht.}) 23... Ne4 $17 {[%emt 0:00:03]} 24. Re1 {[%emt 0:00:14]} Bf5 {[%emt 0:00:31]} (24... g5 $142 25. Nh3 Rad8 (25... gxh4 26. Qg4+ Kh8 27. Ne5 $17) 26. hxg5 hxg5) 25. Bf3 {[%emt 0:00:44]} g5 {[%emt 0:00:38]} 26. hxg5 {[%emt 0:00:24]} hxg5 {[%emt 0:00:03]} 27. Nh5 {[%emt 0:00:05]} Bg6 {[%emt 0:00:05]} 28. Kg2 {[%emt 0:03:04]} f6 {[%emt 0:00:29]} 29. Rh1 {[%emt 0:00:10]} Kf7 {[%emt 0:00:05]} 30. Bg4 {[%emt 0:00:39]} (30. Qe2 $17 {kämpft weiter.}) 30... f5 {[%emt 0:01:27]} 31. Be2 {[%emt 0:02:49]} Rh8 {[%emt 0:00:27]} 32. g4 {[%emt 0:00:10]} (32. Qc2 $142) 32... Bxh5 $19 {[%emt 0:00:43]} 33. gxh5 {[%emt 0:00:10] [#]} g4 $1 {[%emt 0:00:11]} 34. Qc2 {[%emt 0:01:11]} Rh6 {[%emt 0:00:46] Droht ...Rah8 und aus.} 35. Nf4 {[%emt 0:02:26]} (35. Ne5+ $142 Bxe5 (35... Nxe5 $2 36. dxe5 Bxe5 37. Rag1 $19) 36. dxe5) 35... Bxf4 {[%emt 0:00:07]} 36. exf4 {[%emt 0:00:01]} Rah8 {[%emt 0:00:35]} 37. Bc1 {[%emt 0:00:53]} (37. Bd3 $142 Rxh5 38. Bxe4 fxe4 (38... Qxe4+ $2 39. Qxe4 dxe4 40. Rxh5 $19) 39. Rxh5 Rxh5 40. Rh1 Rxh1 41. Kxh1 Qh4+ 42. Kg1) 37... Rxh5 {[%emt 0:00:13]} 38. Be3 {[%emt 0:00:05]} Rxh1 39. Rxh1 {[%emt 0:00:02]} Rxh1 {[%emt 0:00:44]} 40. Kxh1 {[%emt 0:00:01]} Qh4+ {[%emt 0:00:02]} 41. Kg1 {[%emt 0:00:03]} g3 {[%emt 0:00:14] ( -> ...Qh2+)} 42. Bf3 {[%emt 0:00:43]} Qh2+ {[%emt 0:00:47]} 43. Kf1 {[%emt 0:00:01]} gxf2 {[%emt 0:00:03]} (43... Ndf6 $142 {...Ng4 wäre nun fies.} 44. Qe2 Ng4 45. Bxe4 dxe4 46. fxg3 Qxg3) 44. Bxe4 {[%emt 0:00:16] [#]} (44. Bxf2 $19 Ndf6 (44... Qxf4 $2 45. Qe2 $19) 45. Qe2) 44... Qg1+ {[%emt 0:00:02] Gewichteter Fehlerwert: Weiß=0.60/Schwarz=0.25 (präzise) .  Fehler:       	Weiß=8     	Schwarz=3     Ungenau:       	Weiß=4     	Schwarz=3     OK:         	Weiß=4     	Schwarz=9     Bester:       	Weiß=1     	Schwarz=3     Stark:        	Weiß=1     	Schwarz=1} 0-1

[Event "13th All African Mixed Team Rapid-ch 202"]
[Site "Accra"]
[Date "2024.03.09"]
[Round "3.6"]
[White "Nassr, Lina"]
[Black "Nakabo, Peninah"]
[Result "1-0"]
[ECO "D05"]
[WhiteElo "2080"]
[BlackElo "1836"]
[Annotator "RC"]
[PlyCount "45"]
[EventDate "2024.03.07"]
[EventType "rapid"]
[EventCountry "GHA"]
[SourceTitle "playchess.com"]
[Source "ChessBase"]
[SourceQuality "1"]
[TimeControl "900+10"]

1. d4 {[%emt 0:00:03]} e6 {[%emt 0:00:03]} 2. Nf3 {[%emt 0:00:01]} d5 {[%emt 0:00:01]} 3. e3 {[%emt 0:00:02]} Nf6 {[%emt 0:00:02]} 4. Bd3 {[%emt 0:00:01]} Bd6 {[%emt 0:00:04]} 5. b3 {[%emt 0:00:02]} O-O {[%emt 0:00:34]} 6. Bb2 {[%emt 0:00:03]} b6 {[%emt 0:00:05]} 7. Nbd2 {[%emt 0:00:03]} c5 {[%emt 0:00:07]} 8. O-O {[%emt 0:00:03]} Nc6 {[%emt 0:00:04]} 9. a3 {[%emt 0:00:02]} a5 {[%emt 0:00:19]} 10. c4 {[%emt 0:00:41]} cxd4 {[%emt 0:00:16]} 11. exd4 {[%emt 0:00:28]} Qc7 {[%emt 0:00:14]} 12. Rc1 {[%emt 0:00:21]} Bb7 {[%emt 0:00:20]} 13. cxd5 {[%emt 0:00:52]} exd5 {[%emt 0:01:19]} 14. Ne5 {[%emt 0:00:34]} Bxe5 {[%emt 0:00:58]} 15. dxe5 {[%emt 0:00:03]} Nd7 {[%emt 0:00:06]} 16. f4 {[%emt 0:01:21]} Nc5 {[%emt 0:00:46]} 17. Bb1 {[%emt 0:00:44]} Qd7 {[%emt 0:00:51]} 18. Rf3 {[%emt 0:00:37]} Ne6 {[%emt 0:01:21]} 19. Nc4 {[%emt 0:02:31]} Qd8 {[%emt 0:00:32]} 20. Nd6 {[%emt 0:00:12]} Qb8 {[%emt 0:00:50]} 21. Bxh7+ {[%emt 0:01:51]} Kxh7 {[%emt 0:00:30]} 22. Rh3+ {[%emt 0:00:02]} Kg8 {[%emt 0:00:29]} 23. Qh5 {[%emt 0:00:04]} 1-0

[Event "13th All African Mixed Team Rapid-ch 202"]
[Site "Accra"]
[Date "2024.03.09"]
[Round "3.7"]
[White "Akpa Prince"]
[Black "KIGIGHA, Bomo Lovet"]
[Result "1-0"]
[ECO "E04"]
[WhiteElo "1845"]
[BlackElo "2231"]
[Annotator "ChessBase"]
[PlyCount "89"]
[EventDate "2024.03.07"]
[EventType "rapid"]
[EventCountry "GHA"]
[SourceTitle "playchess.com"]
[Source "ChessBase"]
[SourceQuality "1"]
[TimeControl "900+10"]

1. d4 {[%emt 0:00:05]} d5 {[%emt 0:00:01]} 2. c4 {[%emt 0:00:01]} c6 {[%emt 0:00:02]} 3. g3 {[%emt 0:00:03]} Nf6 {[%emt 0:00:02]} 4. Bg2 {[%emt 0:00:02]} dxc4 {[%emt 0:00:03]} 5. Nf3 {[%emt 0:00:07]} e6 {[%emt 0:00:05]} 6. O-O {[%emt 0:00:08]} Be7 {[%emt 0:00:09]} 7. Ne5 {[%emt 0:00:02]} O-O {[%emt 0:00:19]} 8. Nxc4 {[%emt 0:00:03]} c5 {[%emt 0:00:36]} 9. dxc5 {[%emt 0:00:06]} Bxc5 {[%emt 0:00:19]} 10. Nc3 {[%emt 0:00:06]} Nc6 {[%emt 0:00:05]} 11. Bg5 {[%emt 0:00:20]} Be7 {[%emt 0:01:08]} 12. Qa4 {[%emt 0:01:08]} Bd7 {[%emt 0:01:59]} 13. Qb3 {[%emt 0:00:13]} Qc8 {[%emt 0:01:59]} 14. Rfd1 {[%emt 0:00:14]} Rd8 {[%emt 0:01:38]} 15. Rac1 {[%emt 0:00:03]} Be8 {[%emt 0:00:07]} 16. Nb5 {[%emt 0:00:47]} Rxd1+ {[%emt 0:01:56]} 17. Rxd1 {[%emt 0:00:16]} Nd5 {[%emt 0:00:36]} 18. Bxe7 {[%emt 0:00:14]} Ncxe7 {[%emt 0:00:05]} 19. Nbd6 {[%emt 0:00:19]} Qc7 {[%emt 0:01:50]} 20. Qxb7 {[%emt 0:00:24]} Rc8 {[%emt 0:00:37]} 21. Qxc7 {[%emt 0:00:57]} Rxc7 {[%emt 0:00:01]} 22. e4 {[%emt 0:00:31]} Nb4 {[%emt 0:02:13]} 23. a3 {[%emt 0:00:19]} Ba4 {[%emt 0:01:01]} 24. Rd2 {[%emt 0:01:26]} Nbc6 {[%emt 0:00:16]} 25. b4 {[%emt 0:00:27]} f6 {[%emt 0:00:18]} 26. h3 {[%emt 0:00:20]} e5 {[%emt 0:00:02]} 27. h4 {[%emt 0:00:13]} Nd4 {[%emt 0:00:03]} 28. f4 {[%emt 0:00:41]} Rc6 {[%emt 0:00:21]} 29. fxe5 {[%emt 0:00:07]} fxe5 {[%emt 0:00:01]} 30. Kh1 {[%emt 0:00:50]} Bb3 {[%emt 0:00:08]} 31. Bf1 {[%emt 0:00:30]} g6 {[%emt 0:00:17]} 32. Rb2 {[%emt 0:00:14]} Kg7 {[%emt 0:02:13]} 33. Na5 {[%emt 0:00:24]} Rc3 {[%emt 0:00:00]} 34. Nxb3 {[%emt 0:00:31]} Nxb3 {[%emt 0:00:00]} 35. Bc4 {[%emt 0:00:29]} Nd4 {[%emt 0:00:00]} 36. Rf2 {[%emt 0:00:06]} Rc1+ {[%emt 0:00:00]} 37. Kg2 {[%emt 0:00:16]} Rc2 {[%emt 0:00:00]} 38. a4 {[%emt 0:01:56]} Nec6 {[%emt 0:00:00]} 39. Rxc2 {[%emt 0:00:22]} Nxc2 {[%emt 0:00:00]} 40. b5 {[%emt 0:00:12]} Ne7 {[%emt 0:00:24]} 41. a5 {[%emt 0:00:51]} Nc8 {[%emt 0:00:16]} 42. Nxc8 {[%emt 0:00:49]} Ne3+ {[%emt 0:00:01]} 43. Kf3 {[%emt 0:00:07]} Nxc4 {[%emt 0:00:02]} 44. b6 {[%emt 0:00:37]} axb6 {[%emt 0:00:01]} 45. a6 {[%emt 0:00:19]} 1-0